bitfinex/quotes_ETHUSD_20241024
["timestamp","ask_amount","ask_price","bid_price","bid_amount"]
[1729786651931,3.9806,2512.2,2511.9,0.8094]
[1729786652456,3.98043,2512.3,2511.9,0.8094]
[1729786653666,7.96094,2512.3,2511.9,0.8094]
[1729786653852,3.98043,2512.3,2511.9,0.8094]
[1729786654970,3.98042,2512.3,2511.9,0.8094]
[1729786655467,3.98021,2512.5,2511.9,0.8094]
[1729786655665,3.98027,2512.4,2511.9,0.8094]
[1729786656868,4.16336054,2512.9,2512.0,0.07961175]
[1729786656869,4.80341,2512.9,2512.0,0.07961175]
[1729786657084,16.57540542,2513.3,2512.4,0.814]
[1729786657236,3.97906,2513.2,2512.4,0.814]
[1729786657436,3.9789,2513.3,2512.4,0.814]
[1729786657634,3.97915,2513.1,2512.4,0.814]
[1729786658130,7.95845,2513.1,2512.4,0.814]
[1729786658333,3.97915,2513.1,2512.4,0.814]
[1729786658745,3.97972,2512.8,2512.4,0.814]
[1729786659138,3.97942,2513.0,2512.4,0.814]
[1729786659783,3.9796,2512.9,2512.4,0.814]
[1729786660167,3.97972,2512.8,2512.4,0.814]
[1729786661881,3.97947,2512.9,2512.4,0.814]
[1729786662186,3.97988,2512.7,2512.4,0.814]
[1729786662539,3.97962,2512.8,2511.9,0.8233]
[1729786662780,3.98019,2512.5,2511.9,4.80427]
[1729786663252,3.98001,2512.6,2512.0,3.98088]
[1729786663761,3.97991,2512.7,2512.0,3.98078]
[1729786663976,3.97991,2512.7,2512.1,3.98065]
[1729786664152,3.97995,2512.6,2512.0,4.461188]
[1729786665564,3.97995,2512.6,2512.0,4.461188]
[1729786666879,3.9801,2512.5,2512.0,0.480408]
[1729786667083,7.96029,2512.5,2511.9,4.80434]
[1729786667390,3.98042,2512.3,2511.9,0.8233]
[1729786667591,3.98061,2512.2,2511.9,0.8233]
[1729786667777,3.98086,2512.1,2511.9,0.8233]
[1729786668099,3.98089,2512.0,2511.5,0.8076]
[1729786668603,3.98122,2511.8,2511.5,0.8076]
[1729786668755,3.98137,2511.7,2511.2,0.8076]
[1729786669994,3.98124,2511.8,2511.2,0.8076]
[1729786670157,3.98124,2511.8,2511.2,3.8076]
[1729786670357,3.98138,2511.7,2511.2,3.8076]
[1729786670853,3.98121,2511.8,2511.2,3.8076]
[1729786671458,3.0,2512.0,2511.2,0.8076]
[1729786671660,3.98215,2511.2,2511.1,0.0750015]
[1729786672164,11.25463652,2511.2,2511.1,0.0750015]
[1729786672430,5.50681665,2511.2,2511.1,0.0750015]
[1729786673004,3.98215,2511.2,2511.1,0.0750015]
[1729786680723,7.3253084,2511.2,2511.1,0.0750015]
[1729786681027,11.0935084,2511.2,2511.1,0.0750015]
[1729786683303,3.98215,2511.2,2511.1,0.0750015]
[1729786686196,11.37,2511.5,2511.2,0.8122]
[1729786686197,3.9817,2511.5,2511.2,0.8122]
[1729786686919,3.98136,2511.7,2511.2,0.8122]
[1729786687092,3.3431584,2511.8,2511.2,0.8122]
[1729786687291,3.98199,2511.4,2511.2,0.8122]
[1729786687727,3.98199,2511.4,2511.1,0.0750015]
[1729786687728,3.98215,2511.2,2511.1,0.0750015]
[1729786688092,7.3253084,2511.2,2511.1,0.0750015]
[1729786688491,3.98215,2511.2,2511.1,0.0750015]
[1729786689294,4.73855,2511.2,2511.1,0.0750015]
[1729786689527,8.95492084,2511.2,2511.1,0.0750015]
[1729786693250,5.95492084,2511.2,2511.1,0.0750015]
[1729786696054,3.98203,2511.3,2511.1,0.0750015]
[1729786696355,15.35196,2511.4,2511.1,0.0750015]
[1729786696647,7.96324,2511.6,2511.2,0.7868]
[1729786696851,3.98182,2511.5,2511.2,0.7868]
[1729786697341,3.3431584,2511.8,2511.2,0.7868]
[1729786697545,3.98136,2511.7,2511.2,0.7868]
[1729786697749,3.98136,2511.7,2511.2,1.27121015]
[1729786697961,3.98159,2511.6,2511.2,1.27121015]
[1729786698851,3.98152,2511.6,2511.2,1.27121015]
[1729786699423,7.96281,2511.7,2511.2,1.27121015]
[1729786699611,3.98161,2511.6,2511.2,1.27121015]
[1729786700829,3.98192,2511.4,2511.2,1.27121015]
[1729786701173,3.98192,2511.4,2511.2,0.7868]
[1729786702011,3.98191,2511.4,2511.2,0.7868]
[1729786702416,3.98177,2511.5,2511.2,0.7868]
[1729786704450,3.98188,2511.4,2511.2,0.7868]
[1729786705484,3.982,2511.3,2511.1,0.0750015]
[1729786705779,3.98215,2511.2,2511.1,0.0750015]
[1729786706241,7.3253084,2511.2,2511.1,0.0750015]
[1729786706774,3.98215,2511.2,2511.1,0.0750015]
[1729786706939,5.17234083,2511.2,2511.1,0.0750015]
[1729786707877,3.98215,2511.2,2511.1,0.0750015]
[1729786708942,7.3253084,2511.2,2511.1,0.0750015]
[1729786711281,3.98215,2511.2,2511.1,0.0750015]
[1729786713446,8.55177382,2511.2,2511.1,0.0750015]
[1729786714284,10.20460747,2511.2,2511.1,0.0750015]
[1729786714491,11.68272821,2511.2,2511.1,0.0750015]
[1729786714645,14.68272821,2511.2,2511.1,0.0750015]
[1729786715047,12.62322914,2511.2,2511.1,0.0750015]
[1729786715271,0.7514,2510.4,2509.4,0.7538]
[1729786715474,3.9844,2509.8,2509.4,0.7538]
[1729786715683,3.98456,2509.7,2509.4,0.7538]
[1729786715843,7.96918,2509.7,2509.4,0.7538]
[1729786716041,3.3431584,2509.5,2508.6,0.95105145]
[1729786716241,3.3431584,2509.5,2508.6,0.1250015]
[1729786716242,3.98596,2508.8,2508.6,0.1250015]
[1729786716440,3.98612,2508.7,2508.6,0.1250015]
[1729786716751,0.01,2509.2,2508.7,0.8203]
[1729786716752,3.98541,2509.2,2508.7,0.8203]
[1729786716966,3.98571,2509.0,2508.7,0.8203]
[1729786717168,3.98581,2508.9,2508.7,0.8203]
[1729786717368,3.98527,2509.3,2508.7,0.8203]
[1729786717539,3.98542,2509.2,2508.7,0.8203]
[1729786718088,7.97054,2509.3,2508.7,0.8203]
[1729786718242,3.98502,2509.4,2508.8,3.98588]
[1729786718581,3.98492,2509.5,2508.8,3.98581]
[1729786718877,7.96992,2509.5,2508.9,3.98571]
[1729786719086,3.98467,2509.7,2508.8,0.8056]
[1729786719267,3.98445,2509.8,2509.3,0.822]
[1729786719578,3.98502,2509.4,2508.8,8.79375]
[1729786719877,3.98502,2509.4,2508.8,4.80786]
[1729786720088,3.98469,2509.6,2509.0,3.98556]
[1729786720388,3.98416,2510.0,2509.2,4.80729]
[1729786720551,0.398416,2509.9,2509.2,4.80722]
[1729786720749,3.98427,2509.9,2509.2,4.80722]
[1729786720974,3.98455,2509.7,2509.2,0.822]
[1729786721290,8.1252884,2509.9,2509.2,0.822]
[1729786721644,3.98545,2509.2,2508.8,0.822]
[1729786721885,3.98483,2509.6,2508.9,3.98568]
[1729786722097,3.98483,2509.6,2509.0,0.766]
[1729786722296,3.98486,2509.5,2509.0,0.766]
[1729786722789,3.9852,2509.3,2509.0,0.766]
[1729786723089,3.98532,2509.3,2509.0,0.766]
[1729786723249,3.98537,2509.2,2509.0,0.766]
[1729786723672,3.98549,2509.1,2509.0,0.766]
[1729786723875,3.98533,2509.2,2509.0,0.766]
[1729786724086,3.98497,2509.5,2509.0,0.766]
[1729786724392,3.98496,2509.5,2509.0,0.766]
[1729786724547,3.9851,2509.4,2509.0,0.766]
[1729786724751,3.98518,2509.3,2509.0,0.766]
[1729786725773,3.98534,2509.2,2509.0,0.766]
[1729786726291,3.98518,2509.3,2509.0,0.766]
[1729786726453,3.98521,2509.3,2509.0,0.766]
[1729786727101,3.98458,2509.7,2509.0,0.766]
[1729786727253,15.35409,2510.0,2509.0,0.766]
[1729786727254,3.98442,2509.8,2509.2,3.98533]
[1729786727449,3.98434,2509.9,2509.3,3.98513]
[1729786727653,3.98434,2509.9,2509.4,0.7953]
[1729786728289,7.96799,2510.1,2509.5,3.98484]
[1729786728590,3.98382,2510.2,2509.6,3.98456]
[1729786728751,3.98366,2510.3,2509.8,0.8132]
[1729786729084,3.98366,2510.3,2509.8,4.79755]
[1729786729505,3.98337,2510.5,2509.8,4.79755]
[1729786729506,3.98337,2510.5,2509.8,0.8132]
[1729786729799,3.98366,2510.3,2509.8,4.79748]
[1729786729953,3.98344,2510.4,2509.8,4.79748]
[1729786730149,3.98367,2510.3,2509.8,1.82124888]
[1729786730665,3.98344,2510.4,2509.8,5.80554888]
[1729786730666,7.967,2510.4,2509.8,5.80554888]
[1729786730984,3.9829,2510.8,2509.9,3.3431584]
[1729786731157,3.98263,2510.9,2510.3,7.96707]
[1729786731491,6.24111074,2511.2,2510.4,0.7619]
[1729786731701,3.98286,2510.8,2510.4,0.7619]
[1729786732195,7.96517,2511.0,2510.4,4.74527]
[1729786732697,3.98231,2511.1,2510.4,4.74527]
[1729786732901,3.98266,2510.9,2510.4,0.7619]
[1729786733110,3.98375,2510.2,2509.9,0.7619]
[1729786733553,7.96711,2510.4,2509.9,0.7619]
[1729786733756,3.98353,2510.4,2509.9,0.7619]
[1729786734092,3.98382,2510.2,2509.9,0.7619]
[1729786735262,3.9836,2510.3,2509.9,0.7619]
[1729786735460,3.98377,2510.2,2509.9,0.7619]
[1729786736654,7.9676,2510.2,2509.9,0.7619]
[1729786736898,3.98377,2510.2,2509.9,0.7619]
[1729786737781,7.96761,2510.2,2509.9,0.7619]
[1729786737987,3.98377,2510.2,2509.9,0.7619]
[1729786738203,3.98359,2510.3,2509.9,0.7619]
[1729786738495,3.98356,2510.4,2509.9,0.7619]
[1729786738914,7.96714,2510.4,2509.9,0.7619]
[1729786739199,3.98356,2510.4,2509.9,0.7619]
[1729786739766,3.98366,2510.3,2509.9,0.7619]
[1729786739962,3.98358,2510.3,2509.9,0.7619]
[1729786740282,0.796676,2510.4,2509.9,0.7619]
[1729786740464,3.98408,2510.0,2509.6,0.806]
[1729786740660,3.98398,2510.1,2509.6,0.806]
[1729786740858,3.98398,2510.1,2509.6,4.79063]
[1729786741901,3.98398,2510.1,2509.6,0.806]
[1729786742203,3.98398,2510.1,2509.3,0.8058]
[1729786742204,3.98492,2509.5,2509.3,0.8058]
[1729786742805,3.98438,2509.8,2509.0,0.8058]
[1729786743033,3.98563,2509.1,2508.6,0.1250015]
[1729786743233,4.80423,2509.2,2508.6,0.1250015]
[1729786743234,0.8188,2509.2,2508.6,0.1250015]
[1729786743529,3.98576,2509.0,2508.6,0.1250015]
[1729786743884,3.98583,2508.9,2508.6,0.1250015]
[1729786744285,3.98576,2509.0,2508.6,0.1250015]
[1729786744590,7.97153,2509.0,2508.6,0.1250015]
[1729786744790,3.98576,2509.0,2508.6,0.1250015]
[1729786745722,3.98585,2508.9,2508.6,0.1250015]
[1729786745920,3.98612,2508.7,2508.6,0.1250015]
[1729786747122,5.09838278,2509.2,2508.7,0.8024]
[1729786747123,3.98543,2509.2,2508.7,0.8024]
[1729786747322,7.97088,2509.2,2508.7,0.8024]
[1729786747796,3.9855,2509.1,2508.7,0.8024]
[1729786747997,4.782593,2509.1,2508.7,0.8024]
[1729786748220,3.9855,2509.1,2508.7,0.8024]
[1729786748820,7.97111,2509.1,2508.7,0.8024]
[1729786749031,3.9855,2509.1,2508.7,0.8024]
[1729786749338,7.97061,2509.3,2508.7,4.78849]
[1729786749901,3.98526,2509.3,2508.7,4.78849]
[1729786750115,3.98526,2509.3,2508.8,3.98589]
[1729786750320,3.98526,2509.3,2508.7,4.78851]
[1729786750536,3.98535,2509.2,2508.7,4.78851]
[1729786750705,0.777216,2509.4,2508.8,3.98596]
[1729786750906,6.98453,2509.7,2508.8,3.98596]
[1729786751103,3.98494,2509.5,2508.7,0.8024]
[1729786751337,3.98494,2509.5,2509.0,3.98558]
[1729786751710,3.98485,2509.5,2508.9,3.98579]
[1729786751910,3.98505,2509.4,2508.9,3.98571]
[1729786752141,3.98505,2509.4,2508.9,7.97143]
[1729786752339,3.98505,2509.4,2508.9,3.98571]
[1729786752556,3.98505,2509.4,2508.6,0.1250015]
[1729786752557,3.98612,2508.7,2508.6,0.1250015]
[1729786753307,4.80072,2508.7,2508.6,0.1250015]
[1729786754306,4.81072,2508.7,2508.6,0.1250015]
[1729786754623,4.80072,2508.7,2508.6,0.1250015]
[1729786754824,6.11834928,2508.7,2508.6,0.1250015]
[1729786755025,6.11834928,2508.7,2506.5,3.98952]
[1729786755026,3.98875,2507.1,2506.5,3.98952]
[1729786755268,3.98875,2507.1,2506.3,0.8178]
[1729786755269,0.398875,2507.0,2506.3,3.98983]
[1729786755425,0.8084,2507.8,2506.5,0.8178]
[1729786755621,15.64958278,2508.0,2507.1,3.98856]
[1729786755622,3.98771,2507.7,2507.1,3.98856]
[1729786755811,0.8084,2508.1,2507.2,0.8178]
[1729786756009,3.98742,2507.9,2507.3,3.98827]
[1729786756210,3.98664,2508.4,2507.4,0.07976289]
[1729786756211,3.98689,2508.3,2507.4,0.07976289]
[1729786756544,3.98653,2508.5,2507.9,3.98738]
[1729786756866,3.98688,2508.3,2507.8,0.8178]
[1729786757007,3.98661,2508.4,2507.8,4.80531]
[1729786757207,3.98652,2508.5,2508.0,3.98718]
[1729786757411,3.98652,2508.5,2507.9,3.98739]
[1729786757614,3.98628,2508.6,2508.0,3.98715]
[1729786757923,5.29387928,2508.7,2507.8,1.697091]
[1729786757924,3.98658,2508.5,2507.8,1.697091]
[1729786758119,3.98687,2508.3,2507.8,1.697091]
[1729786758321,3.98687,2508.3,2507.8,0.8178]
[1729786758726,3.9866,2508.4,2507.8,4.80533]
[1729786758911,3.98656,2508.5,2507.8,4.80533]
[1729786759117,3.98656,2508.5,2507.9,3.98737]
[1729786759312,3.98629,2508.6,2508.0,3.98715]
[1729786759853,3.98629,2508.6,2508.1,3.98707]
[1729786760016,3.98653,2508.5,2507.9,3.98727]
[1729786760557,3.98636,2508.6,2508.0,3.98712]
[1729786760846,3.98637,2508.6,2508.0,3.98708]
[1729786761007,3.98647,2508.5,2507.8,4.80524]
[1729786761212,3.98672,2508.4,2507.8,8.79272]
[1729786761536,3.98638,2508.6,2507.9,3.98733]
[1729786761731,7.97278,2508.6,2508.0,3.98716]
[1729786761935,3.98638,2508.6,2508.0,3.98716]
[1729786762144,3.98638,2508.6,2508.1,3.987]
[1729786762315,3.98607,2508.8,2508.2,3.98689]
[1729786762512,3.98607,2508.8,2508.3,0.7682]
[1729786762750,3.9863,2508.6,2508.3,0.7682]
[1729786763248,3.98636,2508.6,2508.3,0.7682]
[1729786763951,3.98613,2508.7,2508.3,0.7682]
[1729786764260,1.37884572,2509.1,2508.3,4.75493]
[1729786764261,3.98599,2508.8,2508.3,4.75493]
[1729786764942,3.98599,2508.8,2508.3,0.7682]
[1729786765110,4.95014285,2509.0,2508.3,0.7682]
[1729786765311,0.62404572,2509.1,2508.7,3.9861]
[1729786765540,0.79699,2509.4,2508.8,4.77778]
[1729786765857,3.98518,2509.3,2508.8,0.7919]
[1729786766211,3.98477,2509.6,2509.0,3.98562]
[1729786766413,3.98537,2509.2,2508.8,0.7919]
[1729786766614,3.98557,2509.1,2508.8,0.7919]
[1729786766837,3.98565,2509.0,2508.8,0.7919]
[1729786767115,3.98581,2508.9,2508.5,0.7743]
[1729786767450,4.384215,2509.0,2508.5,0.7743]
[1729786767646,3.98565,2509.0,2508.5,0.7743]
[1729786767854,3.98546,2509.2,2508.5,4.76062]
[1729786768052,3.98546,2509.2,2508.6,3.98616]
[1729786768255,3.98518,2509.3,2508.7,3.98611]
[1729786768454,3.98518,2509.3,2508.7,7.97215]
[1729786768618,0.7827,2509.7,2508.8,0.8297]
[1729786768959,3.98526,2509.3,2508.8,0.8297]
[1729786769614,7.97057,2509.3,2508.8,0.8297]
[1729786769820,3.98534,2509.2,2508.8,0.8297]
[1729786770359,3.98621,2508.7,2508.5,0.8297]
[1729786770560,3.98545,2509.2,2508.2,0.8297]
[1729786770727,3.98659,2508.5,2508.2,0.8297]
[1729786771250,3.98668,2508.4,2508.2,0.8297]
[1729786771460,0.797327,2508.4,2508.2,0.8297]
[1729786771665,3.98644,2508.6,2508.2,0.8297]
[1729786772015,3.9864,2508.6,2508.2,0.8297]
[1729786772433,3.98639,2508.6,2508.2,0.8297]
[1729786772838,3.98614,2508.7,2508.2,0.8297]
[1729786773031,3.98651,2508.5,2508.2,0.8297]
[1729786773276,4.783775,2508.5,2508.2,0.8297]
[1729786773557,3.98667,2508.4,2508.2,0.8297]
[1729786773786,4.783775,2508.5,2508.2,0.8297]
[1729786773968,4.783775,2508.5,2507.9,0.8071]
[1729786774164,4.783775,2508.5,2508.0,3.9872]
[1729786774369,4.783775,2508.5,2507.9,4.79438]
[1729786774528,4.75665,2509.0,2508.0,3.98716]
[1729786774734,3.9863,2508.6,2508.0,3.98724]
[1729786775040,3.98652,2508.5,2507.9,4.7944]
[1729786775357,3.98624,2508.7,2507.9,0.8071]
[1729786775556,7.97251,2508.7,2508.1,3.98706]
[1729786775856,0.797251,2508.6,2508.2,3.9869]
[1729786776057,3.98624,2508.7,2508.2,3.9869]
[1729786776558,3.98638,2508.6,2508.0,3.98715]
[1729786776868,3.98643,2508.6,2508.0,3.98713]
[1729786777363,7.97286,2508.6,2508.0,3.98713]
[1729786777668,4.75666,2509.0,2508.0,3.98713]
[1729786777956,3.98613,2508.7,2508.2,3.98689]
[1729786778158,3.98575,2509.0,2508.4,0.7604]
[1729786778364,3.98511,2509.4,2508.4,0.7604]
[1729786778365,3.98588,2508.9,2508.4,4.74697]
[1729786778735,3.98566,2509.0,2508.5,3.98637]
[1729786778945,3.98562,2509.1,2508.6,3.98626]
[1729786779260,3.98582,2508.9,2508.4,0.7604]
[1729786779466,3.98597,2508.8,2508.4,0.7604]
[1729786779647,4.783149,2508.8,2508.4,0.7604]
[1729786780555,4.783149,2508.8,2508.4,4.74699]
[1729786781084,3.98575,2509.0,2508.4,0.7604]
[1729786781285,3.98541,2509.2,2508.4,0.7604]
[1729786781286,3.98561,2509.1,2508.5,3.98629]
[1729786781491,3.98582,2508.9,2508.4,4.74695]
[1729786781644,0.797163,2508.8,2508.7,3.98612]
[1729786781986,3.98535,2509.2,2508.7,3.98612]
[1729786782294,3.98535,2509.2,2508.5,3.98633]
[1729786782587,3.98577,2509.0,2508.5,3.9863]
[1729786782746,3.98577,2509.0,2508.5,7.97266]
[1729786782945,3.98577,2509.0,2508.5,3.9863]
[1729786783144,8.370117,2509.0,2508.5,3.9863]
[1729786783345,0.398577,2509.0,2508.5,3.9863]
[1729786783563,5.70725865,2509.6,2508.9,4.81307]
[1729786783779,1.59367537,2509.9,2509.4,0.8273]
[1729786783982,3.98485,2509.5,2509.1,0.8273]
[1729786784347,5.57775537,2510.0,2509.1,0.8273]
[1729786784348,3.98463,2509.7,2509.1,4.81278]
[1729786784980,3.98438,2509.8,2509.2,3.98521]
[1729786785153,8.78609537,2510.0,2509.4,3.98492]
[1729786785360,8.78609537,2510.0,2509.5,0.8262]
[1729786785361,6.12251584,2509.9,2509.5,0.8262]
[1729786785556,3.98424,2509.9,2509.5,0.8262]
[1729786786003,4.80160537,2510.2,2509.5,0.8262]
[1729786786162,3.98383,2510.2,2509.5,0.8262]
[1729786786372,4.80131537,2510.4,2509.6,0.07968957]
[1729786786373,8.78485537,2510.4,2509.6,0.07968957]
[1729786786594,3.98354,2510.4,2509.6,0.07968957]
[1729786786768,0.398354,2510.3,2509.7,0.7683]
[1729786787089,3.98354,2510.4,2509.7,0.7683]
[1729786787253,5.20953306,2510.8,2509.8,0.7683]
[1729786787254,3.98337,2510.5,2509.8,0.7683]
[1729786787457,3.98325,2510.6,2509.8,0.7683]
[1729786787672,3.98325,2510.6,2509.8,0.84797975]
[1729786787906,3.98325,2510.6,2509.9,0.07967372]
[1729786788089,0.398325,2510.5,2510.0,0.7996]
[1729786788695,4.381715,2510.5,2510.0,0.7996]
[1729786789808,3.98275,2510.9,2510.1,3.98388]
[1729786789974,3.98272,2510.9,2510.3,0.7602]
[1729786790171,3.98286,2510.8,2510.3,0.7602]
[1729786790507,3.98272,2510.9,2510.3,0.7602]
[1729786790909,3.98242,2511.1,2510.4,3.9834]
[1729786791065,0.398242,2511.0,2510.3,5.03978278]
[1729786791408,0.398242,2511.0,2510.4,3.98331]
[1729786791768,4.380742,2511.0,2510.4,3.98331]
[1729786791971,0.398242,2511.0,2510.5,3.98324]
[1729786792166,0.398242,2511.0,2510.7,3.98285]
[1729786792407,3.98234,2511.1,2510.6,0.7919]
[1729786792593,0.81777537,2511.6,2510.6,0.7919]
[1729786792594,3.98209,2511.3,2510.7,3.98293]
[1729786792768,3.9818,2511.5,2510.8,0.7919]
[1729786792971,3.98184,2511.4,2510.8,0.7919]
[1729786793194,3.98201,2511.3,2510.8,0.7919]
[1729786793396,0.796369,2511.3,2510.8,0.7919]
[1729786793624,5.09735815,2511.6,2510.4,0.7982]
[1729786793782,3.98242,2511.1,2510.4,4.78158]
[1729786793972,3.98211,2511.3,2510.5,3.98323]
[1729786794172,3.98215,2511.2,2510.5,3.98323]
[1729786794396,3.98215,2511.2,2510.6,3.98311]
[1729786794596,4.778766,2511.1,2510.4,0.7982]
[1729786794773,4.778766,2511.1,2510.4,4.78154]
[1729786794971,0.796426,2511.1,2510.5,4.86099405]
[1729786795171,4.778756,2511.1,2510.5,0.87785405]
[1729786795374,3.9825,2511.0,2510.5,0.7982]
[1729786795573,4.8586256,2511.0,2510.5,0.7982]
[1729786795808,3.98271,2510.9,2510.5,0.7982]
[1729786796613,7.96537,2510.9,2510.5,0.7982]
[1729786796803,7.96538,2510.9,2510.5,0.7982]
[1729786797122,3.9824,2511.1,2510.5,0.7982]
[1729786797281,8.36309,2511.1,2510.5,0.7982]
[1729786797482,4.38064,2511.1,2510.5,0.7982]
[1729786797683,3.98255,2511.0,2510.5,0.7982]
[1729786799284,4.38064,2511.1,2510.5,0.7982]
[1729786799599,3.9824,2511.1,2510.5,0.7982]
[1729786799809,3.98259,2511.0,2510.5,0.7982]
[1729786800115,4.779089,2511.0,2510.5,0.7982]
[1729786800419,0.796499,2511.0,2510.5,0.7982]
[1729786800605,3.98258,2511.0,2510.5,0.7982]
[1729786801120,3.9824,2511.1,2510.5,0.7982]
[1729786801417,3.98254,2511.0,2510.5,0.7982]
[1729786801621,3.98184,2511.4,2510.5,0.7982]
[1729786801825,3.98324,2510.6,2510.3,0.7733]
[1729786801979,3.98329,2510.5,2510.3,0.7733]
[1729786802381,3.98312,2510.6,2510.3,0.7733]
[1729786802617,3.98303,2510.7,2510.3,0.7733]
[1729786803001,4.75205,2511.2,2510.3,0.7733]
[1729786803002,0.7698,2511.2,2510.3,0.7733]
[1729786803324,3.983,2510.7,2510.3,0.7733]
[1729786803483,3.98289,2510.8,2510.3,0.7733]
[1729786803684,7.9658,2510.8,2510.3,0.7733]
[1729786804285,3.98304,2510.7,2510.3,0.7733]
[1729786804483,3.98342,2510.4,2510.3,0.7733]
[1729786804884,3.98327,2510.5,2510.3,0.7733]
[1729786808295,0.398304,2510.6,2510.3,0.7733]
[1729786808484,4.381444,2510.6,2510.3,0.7733]
[1729786808885,0.398304,2510.6,2510.3,0.7733]
[1729786809828,0.476204,2511.3,2510.4,3.34386485]
[1729786810132,3.98222,2511.2,2510.6,3.98311]
[1729786810733,4.458254,2511.3,2510.8,0.7655]
[1729786811442,3.98205,2511.3,2510.8,0.7655]
[1729786812426,7.96416,2511.3,2510.8,0.7655]
[1729786812604,3.98205,2511.3,2510.8,0.7655]
[1729786812805,3.98216,2511.2,2510.8,0.7655]
[1729786813052,3.98205,2511.3,2510.8,0.7655]
[1729786813412,3.98187,2511.4,2510.8,5.95577148]
[1729786813742,3.98131,2511.8,2511.0,4.74794]
[1729786813945,3.98143,2511.7,2511.1,4.74778]
[1729786814249,4.81152,2512.1,2511.5,4.74714]
[1729786814250,3.9808,2512.1,2511.5,4.74714]
[1729786814546,3.9808,2512.1,2511.5,0.7655]
[1729786814547,3.9809,2512.0,2511.5,0.7655]
[1729786814899,0.8307,2512.4,2511.5,0.7655]
[1729786814900,3.98064,2512.2,2511.5,4.74704]
[1729786815106,3.98064,2512.2,2511.6,0.84422103]
[1729786815314,3.9808,2512.1,2511.6,0.7646]
[1729786815535,3.98055,2512.3,2511.6,4.74609]
[1729786815734,3.98074,2512.1,2511.6,0.7646]
[1729786816140,3.97996,2512.6,2511.6,0.7646]
[1729786816141,3.98065,2512.2,2511.6,4.82567102]
[1729786816350,3.98043,2512.3,2511.7,0.96163215]
[1729786816835,0.7652,2512.7,2511.8,0.7542]
[1729786817036,3.98037,2512.4,2511.8,0.7542]
[1729786817227,3.98041,2512.3,2511.8,0.7542]
[1729786818277,7.96097,2512.3,2511.8,0.7542]
[1729786818478,3.98041,2512.3,2511.8,0.7542]
[1729786820469,3.98017,2512.5,2511.8,0.7542]
[1729786820687,3.9801,2512.5,2511.8,0.7542]
[1729786820836,3.97985,2512.7,2512.0,0.8229]
[1729786821031,3.97985,2512.7,2511.9,0.50290928]
[1729786821032,3.97958,2512.9,2512.1,4.06032677]
[1729786821276,0.7711,2513.0,2512.4,0.8229]
[1729786821277,3.97937,2513.0,2512.4,0.8229]
[1729786821576,3.98828,2513.7,2512.5,4.88257501]
[1729786821577,3.979,2513.2,2512.5,4.88257501]
[1729786821749,3.97864,2513.5,2512.7,0.8135]
[1729786822073,3.97864,2513.5,2512.6,8.25481283]
[1729786822074,3.97855,2513.5,2512.9,4.79287]
[1729786822236,3.97862,2513.5,2512.9,0.8135]
[1729786822435,3.97837,2513.6,2513.0,0.07957434]
[1729786822639,3.97852,2513.5,2513.0,0.07957434]
[1729786822839,3.97836,2513.6,2513.0,0.07957434]
[1729786823068,3.97832,2513.7,2513.1,0.8214]
[1729786823276,7.95714,2513.5,2513.1,0.8214]
[1729786823448,3.97852,2513.5,2513.1,0.8214]
[1729786823760,3.97829,2513.7,2513.1,4.80054]
[1729786824074,3.97798,2513.9,2513.1,3.97914]
[1729786824378,3.97792,2513.9,2513.3,0.7892]
[1729786824537,3.97764,2514.1,2513.4,3.97866]
[1729786824737,4.42793,2514.2,2513.5,0.7752]
[1729786824941,3.97774,2514.0,2513.5,0.7752]
[1729786825137,4.42792,2514.2,2513.7,0.7544]
[1729786825339,3.97759,2514.1,2513.7,0.7544]
[1729786825576,4.42788,2514.2,2513.7,0.7544]
[1729786825737,0.4504,2514.2,2513.7,0.7544]
[1729786825933,0.4504,2514.2,2513.8,0.07955016]
[1729786826169,0.4504,2514.2,2513.8,4.74613]
[1729786826384,0.4504,2514.2,2513.9,0.07954721]
[1729786826583,0.4504,2514.2,2514.0,0.84764165]
[1729786826740,0.4504,2514.2,2514.0,0.7681]
[1729786827179,0.4504,2514.2,2514.1,3.97756]
[1729786827483,0.4504,2514.2,2514.1,9.02745283]
[1729786827687,0.4504,2514.2,2514.1,10.87796811]
[1729786827886,0.4504,2514.2,2514.1,13.32796811]
[1729786828382,0.4504,2514.2,2514.1,9.35040811]
[1729786828537,0.4504,2514.2,2514.1,13.32796811]
[1729786829743,0.4504,2514.2,2514.1,13.87796811]
[1729786831581,0.4504,2514.2,2514.1,13.88796811]
[1729786831936,0.4504,2514.2,2514.1,13.87796811]
[1729786832141,0.4504,2514.2,2514.1,0.775]
[1729786832341,0.4504,2514.2,2513.5,4.28489283]
[1729786832342,3.97766,2514.1,2513.6,0.7556]
[1729786832574,3.97772,2514.0,2513.6,0.7556]
[1729786833140,4.4278,2514.2,2513.7,0.07955602]
[1729786833345,3.97765,2514.1,2513.7,0.07955602]
[1729786833743,3.97793,2513.9,2513.6,0.7556]
[1729786834040,3.97804,2513.8,2513.2,0.397914]
[1729786834240,0.4504,2514.2,2513.3,0.758]
[1729786834473,3.97784,2514.0,2513.3,0.758]
[1729786834672,3.97806,2513.8,2513.4,0.473699]
[1729786834876,3.97806,2513.8,2513.3,0.758]
[1729786835045,3.97795,2513.9,2513.3,0.758]
[1729786835391,4.42782,2514.2,2513.3,0.758]
[1729786835590,6.97756,2514.1,2513.3,0.758]
[1729786835897,3.97833,2513.7,2513.3,0.758]
[1729786836241,3.978,2513.9,2513.3,0.758]